fUST/lending_fUST_20241221
["ID","MTS","AMOUNT","RATE_DAILY","PERIOD"]
[346185440,1734767440676,-20022.11525351,0.00018055,2]
[346185936,1734767446554,-8894.42000001,0.00018055,2]
[346186170,1734768061275,10000.0,0.000221,60]
[346186171,1734768075076,4205.0,0.00017251,2]
[346186174,1734768141251,181.83696054,0.00025,120]
[346186176,1734768280423,256.662128,0.00013973,2]
[346186177,1734768300124,16004.781325,0.00017042,2]
[346186196,1734768632564,-300.0,0.00017666,2]
[346186198,1734768632573,-300.0,0.00017666,2]
[346186200,1734768632582,-10413.64391987,0.00017667,2]
[346186202,1734768632591,-418.98405835,0.00017926,2]
[346186204,1734768632600,-155.68146907,0.00017956,2]
[346186205,1734768632609,-187.4788536,0.00018005,2]
[346186208,1734768632619,-500.0,0.00018054,2]
[346186209,1734768632629,-173.8351411,0.00018054,2]
[346186212,1734768632639,-450.0378559,0.00018054,2]
[346186213,1734768632648,-573.13547545,0.00018054,2]
[346186215,1734768632657,-13216.71259416,0.00018055,2]
[346186304,1734768638573,-4675.78796123,0.00018055,2]
[346186306,1734768638627,-18299.78319248,0.00018055,2]
[346186307,1734768638638,-79551.00340726,0.00018055,2]
[346186310,1734768638648,-19715.35715677,0.00018056,2]
[346186314,1734768638681,-19444.9999998,0.00018056,2]
[346186370,1734768643544,-20169.17219092,0.00018056,2]
[346186371,1734768643597,-1779.17,0.00018056,2]
[346186372,1734768643609,-7756.64242944,0.00018056,2]
[346186392,1734768646587,-8811.52878509,0.00018056,2]
[346186393,1734768646698,-5334.08210588,0.00018056,2]
[346186394,1734768646709,-356.814,0.0001873,2]
[346186395,1734768646720,-153.0,0.00018754,2]
[346186396,1734768646730,-153.0,0.00018754,2]
[346186397,1734768646739,-500.0,0.00018869,2]
[346186398,1734768646749,-167.8708504,0.00018877,2]
[346186399,1734768646758,-155.68146907,0.00018928,2]
[346186400,1734768646767,-534.0,0.00018943,2]
[346186401,1734768646777,-1541.08862464,0.00018943,2]
[346186402,1734768646788,-596.91137536,0.00018943,2]
[346186403,1734768646797,-2362.0,0.00018943,2]
[346186404,1734768646807,-666.0,0.00019078,2]
[346186405,1734768646817,-352.0971134,0.000191,2]
[346186406,1734768646827,-512.7475379,0.00019173,2]
[346186407,1734768646836,-500.0,0.00019173,2]
[346186408,1734768646845,-482.71911122,0.00019173,2]
[346186409,1734768646854,-500.0,0.00019173,2]
[346186410,1734768646863,-500.0,0.00019173,2]
[346186411,1734768646872,-500.0,0.00019173,2]
[346186412,1734768646881,-500.0,0.00019173,2]
[346186413,1734768646890,-500.0,0.00019178,2]
[346186414,1734768646899,-502.73635605,0.00019178,2]
[346186415,1734768646908,-500.49638502,0.00019178,2]
[346186416,1734768646917,-500.0,0.00019178,2]
[346186417,1734768646926,-500.0,0.00019178,2]
[346186418,1734768646935,-506.48522656,0.00019178,2]
[346186419,1734768646944,-500.0,0.00019178,2]
[346186420,1734768646953,-500.0,0.00019178,2]
[346186421,1734768646965,-500.0,0.00019178,2]
[346186422,1734768646974,-500.0,0.00019178,2]
[346186423,1734768646983,-500.0,0.00019178,2]
[346186424,1734768646992,-500.0,0.00019178,2]
[346186425,1734768647001,-501.59,0.00019178,2]
[346186426,1734768647010,-98.86987115,0.00019178,2]
[346186434,1734769276288,243.829021,0.00013973,2]
[346186474,1734769836213,-164.990374,0.00017333,2]
[346186475,1734769836224,-264.8936306,0.0001814,2]
[346186476,1734769836234,-157.81215229,0.0001814,2]
[346186477,1734769836245,-293.6982969,0.00018297,2]
[346186478,1734769836254,-341.85,0.0001873,2]
[346186479,1734769836264,-183.59,0.00018794,2]
[346186480,1734769836274,-300.0,0.00019012,2]
[346186482,1734769836284,-863.98932193,0.00019013,2]
[346186766,1734769840878,-711.28081311,0.00019013,2]
[346187053,1734769843717,-4204.04019927,0.00019013,2]
[346187060,1734769843775,-298.74417843,0.00019013,2]
[346187062,1734769843787,-3502.2408558,0.00019013,2]
[346187794,1734769851277,827.327,0.00025,120]
[346187826,1734769851570,758.8,0.00025,120]
[346187857,1734769851860,695.517,0.00025,120]
[346187896,1734769852315,637.7,0.00025,120]
[346187943,1734769852750,584.9776,0.00025,120]
[346187999,1734769853274,535.0,0.00025,120]
[346188033,1734769853585,490.7005,0.00025,120]
[346188083,1734769854049,449.291,0.00025,120]
[346188128,1734769854472,1237.06965,0.00025,120]
[346188158,1734769854754,928.0,0.00025,120]
[346188189,1734769855047,695.37,0.00025,120]
[346188219,1734769855326,522.2,0.00025,120]
[346188248,1734769855608,391.043448,0.00025,120]
[346188276,1734769855882,293.555106,0.00025,120]
[346188307,1734769856195,880.5,0.00025,120]
[346194435,1734770241304,157.1,0.00017251,2]
[346194436,1734770361135,231.637569,0.00013973,2]
[346194472,1734771031964,-327.777,0.0001822,2]
[346194473,1734771031974,-180.60326589,0.00018625,2]
[346194474,1734771031983,-480.01755768,0.00018725,7]
[346194475,1734771032127,-19.98244232,0.00018725,7]
[346194476,1734771032137,-483.11898061,0.00018725,7]
[346194506,1734771037737,-16.88101939,0.00018725,7]
[346194508,1734771037746,-497.73,0.00018725,7]
[346194510,1734771037755,-833.34855134,0.00018795,2]
[346194512,1734771037765,-181.24938135,0.00018886,2]
[346194514,1734771037774,-300.0,0.00018903,2]
[346194516,1734771037783,-300.0,0.00018903,2]
[346194518,1734771037793,-5000.0,0.00018904,7]
[346194520,1734771037804,-477.3381255,0.00018986,2]
[346194522,1734771037813,-36.96501539,0.00019,2]
[346194528,1734771037855,-231.04336941,0.00019,2]
[346194530,1734771037865,-225.9836839,0.00019,2]
[346194533,1734771037874,-153.3256923,0.00019,2]
[346194535,1734771037882,-352.0971134,0.00019,2]
[346194537,1734771037891,-153.3256923,0.00019,2]
[346194539,1734771037901,-249.095,0.00019065,2]
[346194541,1734771037910,-534.0,0.00019065,2]
[346194543,1734771037920,-2138.0,0.00019065,2]
[346194545,1734771037929,-2362.0,0.00019065,2]
[346194547,1734771037938,-168.19932898,0.00019078,2]
[346194549,1734771037947,-666.0,0.00019078,2]
[346194551,1734771037957,-310.0451038,0.000191,2]
[346194553,1734771037966,-352.02932,0.000191,2]
[346194555,1734771037976,-1582.87117724,0.0001916,2]
[346194557,1734771037986,-151.0,0.00019177,2]
[346194559,1734771037995,-183.591,0.00019177,2]
[346194561,1734771038004,-163.3966018,0.00019178,2]
[346194563,1734771038013,-508.53831322,0.00019178,2]
[346194565,1734771038027,-500.0,0.00019178,2]
[346194567,1734771038037,-503.22915827,0.00019178,2]
[346194569,1734771038046,-500.0,0.00019178,2]
[346194571,1734771038056,-500.0,0.00019178,2]
[346194573,1734771038064,-493.99856091,0.00019178,2]
[346194575,1734771038074,-500.0,0.00019178,2]
[346194577,1734771038085,-500.58308084,0.00019178,2]
[346194579,1734771038094,-505.50651872,0.00019178,2]
[346194581,1734771038103,-507.76036853,0.00019178,2]
[346194583,1734771038112,-500.0,0.00019178,2]
[346194585,1734771038122,-500.0,0.00019178,2]
[346194587,1734771038131,-500.0,0.00019178,2]
[346194589,1734771038140,-500.0,0.00019178,2]
[346194591,1734771038149,-500.0,0.00019178,2]
[346194593,1734771038158,-500.0,0.00019178,2]
[346194595,1734771038167,-641.42,0.00019178,2]
[346194597,1734771038177,-504.11862845,0.00019178,2]
[346194599,1734771038186,-1772.87,0.00019178,2]
[346194601,1734771038195,-500.0,0.00019178,2]
[346194603,1734771038204,-500.0,0.00019178,2]
[346194605,1734771038214,-500.0,0.00019178,2]
[346194607,1734771038223,-500.0,0.00019178,2]
[346194609,1734771038232,-500.0,0.00019178,2]
[346194611,1734771038241,-500.0,0.00019178,2]
[346194613,1734771038251,-500.0,0.00019178,2]
[346194615,1734771038260,-500.0,0.00019178,2]
[346194617,1734771038271,-500.0,0.00019178,2]
[346194619,1734771038280,-500.0,0.00019178,2]
[346194621,1734771038290,-500.0,0.00019178,2]
[346194623,1734771038300,-500.0,0.00019178,2]
[346194625,1734771038310,-509.95024533,0.00019178,2]
[346194627,1734771038319,-500.0,0.00019178,2]
[346194629,1734771038329,-500.0,0.00019178,2]
[346194631,1734771038339,-500.0,0.00019178,2]
[346194633,1734771038348,-538.63,0.00019178,2]
[346194635,1734771038358,-500.0,0.00019178,2]
[346194637,1734771038367,-500.0,0.00019178,2]
[346194639,1734771038376,-500.0,0.00019178,2]
[346194641,1734771038386,-500.0,0.00019178,2]
[346194643,1734771038395,-175.50492288,0.00019178,2]
[346194645,1734771038404,-500.0,0.00019178,2]
[346194647,1734771038417,-500.0,0.00019178,2]
[346194649,1734771038426,-500.0,0.00019178,2]
[346194651,1734771038436,-647.05,0.00019178,2]
[346194653,1734771038445,-500.0,0.00019178,2]
[346194655,1734771038455,-500.0,0.00019178,2]
[346194657,1734771038465,-560.47,0.00019178,2]
[346194659,1734771038474,-500.0,0.00019178,2]
[346194661,1734771038489,-500.0,0.00019178,2]
[346194663,1734771038502,-500.0,0.00019178,2]
[346194665,1734771038511,-157.11539901,0.00019178,2]
[346194667,1734771038522,-500.0,0.00019178,2]
[346194669,1734771038531,-964.84,0.00019178,2]
[346194672,1734771038541,-500.0,0.00019178,2]
[346194674,1734771038550,-500.0,0.00019178,2]
[346194675,1734771038560,-511.3,0.00019178,2]
[346194678,1734771038569,-500.0,0.00019178,2]
[346194679,1734771038578,-500.0,0.00019178,2]
[346194681,1734771038587,-500.0,0.00019178,2]
[346194683,1734771038596,-500.0,0.00019178,2]
[346194707,1734771038793,-500.0,0.00019178,2]
[346194709,1734771038802,-500.0,0.00019178,2]
[346194711,1734771038811,-500.63547758,0.00019178,2]
[346194713,1734771038821,-500.0,0.00019178,2]
[346194715,1734771038830,-927.42,0.00019178,2]
[346194717,1734771038839,-500.0,0.00019178,2]
[346194719,1734771038849,-500.0,0.00019178,2]
[346194721,1734771038858,-500.0,0.00019178,2]
[346194723,1734771038867,-500.0,0.00019178,2]
[346194725,1734771038876,-500.0,0.00019178,2]
[346194727,1734771038886,-500.0,0.00019178,2]
[346194729,1734771038895,-500.0,0.00019178,2]
[346194731,1734771038905,-500.0,0.00019178,2]
[346194733,1734771038914,-500.0,0.00019178,2]
[346194735,1734771038923,-500.0,0.00019178,2]
[346194737,1734771038933,-500.0,0.00019178,2]
[346194739,1734771038942,-500.0,0.00019178,2]
[346194741,1734771038951,-500.0,0.00019178,2]
[346194743,1734771038960,-500.0,0.00019178,2]
[346194745,1734771038970,-500.0,0.00019178,2]
[346194747,1734771038979,-1118.94,0.00019178,2]
[346194749,1734771038988,-500.0,0.00019178,2]
[346194751,1734771038997,-500.0,0.00019178,2]
[346194753,1734771039007,-500.0,0.00019178,2]
[346194755,1734771039017,-500.0,0.00019178,2]
[346194757,1734771039026,-500.0,0.00019178,2]
[346194759,1734771039035,-500.0,0.00019178,2]
[346194761,1734771039045,-500.0,0.00019178,2]
[346194763,1734771039054,-180.29329174,0.00019178,2]
[346194765,1734771039064,-500.0,0.00019178,2]
[346194767,1734771039073,-500.0,0.00019178,2]
[346194769,1734771039083,-500.0,0.00019178,2]
[346194771,1734771039091,-696.57,0.00019178,2]
[346194773,1734771039101,-928.08,0.00019178,2]
[346194775,1734771039111,-500.0,0.00019178,2]
[346194777,1734771039120,-500.0,0.00019178,2]
[346194778,1734771039129,-500.0,0.00019178,2]
[346194779,1734771039138,-500.0,0.00019178,2]
[346194780,1734771039148,-500.0,0.00019178,2]
[346194781,1734771039158,-500.0,0.00019178,2]
[346194782,1734771039167,-500.0,0.00019178,2]
[346194783,1734771039176,-500.0,0.00019178,2]
[346194784,1734771039185,-500.0,0.00019178,2]
[346194785,1734771039194,-500.0,0.00019178,2]
[346194786,1734771039203,-500.0,0.00019178,2]
[346194787,1734771039213,-624.27781928,0.00019178,2]
[346194788,1734771039222,-1259.85,0.00019178,2]
[346194789,1734771039231,-500.0,0.00019178,2]
[346194790,1734771039240,-500.0,0.00019178,2]
[346194791,1734771039249,-500.0,0.00019178,2]
[346194792,1734771039258,-969.57,0.00019178,2]
[346194793,1734771039267,-500.0,0.00019178,2]
[346194794,1734771039276,-500.0,0.00019178,2]
[346194795,1734771039285,-500.0,0.00019178,2]
[346194796,1734771039294,-500.0,0.00019178,2]
[346194798,1734771039304,-500.0,0.00019178,2]
[346194799,1734771039313,-500.0,0.00019178,2]
[346194801,1734771039322,-500.0,0.00019178,2]
[346194802,1734771039331,-500.0,0.00019178,2]
[346194803,1734771039340,-514.46007709,0.00019178,2]
[346194804,1734771039349,-500.0,0.00019178,2]
[346194806,1734771039358,-500.0,0.00019178,2]
[346194808,1734771039367,-500.0,0.00019178,2]
[346194810,1734771039376,-500.0,0.00019178,2]
[346194812,1734771039386,-500.0,0.00019178,2]
[346194814,1734771039395,-819.99,0.00019178,2]
[346194815,1734771039405,-500.0,0.00019178,2]
[346194817,1734771039418,-500.0,0.00019178,2]
[346194819,1734771039428,-500.0,0.00019178,2]
[346194821,1734771039437,-541.6,0.00019178,2]
[346194823,1734771039446,-500.0,0.00019178,2]
[346194826,1734771039457,-689.74,0.00019178,2]
[346194828,1734771039467,-500.0,0.00019178,2]
[346194830,1734771039476,-500.0,0.00019178,2]
[346194831,1734771039487,-500.0,0.00019178,2]
[346194834,1734771039496,-3370.09,0.00019178,2]
[346194836,1734771039506,-1122.3,0.00019178,2]
[346194837,1734771039515,-1244.25,0.00019178,2]
[346194839,1734771039526,-500.0,0.00019178,2]
[346194841,1734771039535,-544.91,0.00019178,2]
[346194843,1734771039544,-500.0,0.00019178,2]
[346194845,1734771039554,-500.0,0.00019178,2]
[346194847,1734771039564,-500.0,0.00019178,2]
[346194849,1734771039574,-500.0,0.00019178,2]
[346194851,1734771039584,-506.01335264,0.00019178,2]
[346194853,1734771039593,-500.0,0.00019178,2]
[346194855,1734771039603,-500.0,0.00019178,2]
[346194857,1734771039612,-1692.6,0.00019178,2]
[346194859,1734771039621,-500.0,0.00019178,2]
[346194861,1734771039631,-500.0,0.00019178,2]
[346194863,1734771039640,-500.0,0.00019178,2]
[346194865,1734771039650,-1209.32,0.00019178,2]
[346194867,1734771039659,-500.0,0.00019178,2]
[346194869,1734771039669,-500.0,0.00019178,2]
[346194871,1734771039678,-500.0,0.00019178,2]
[346194873,1734771039688,-500.0,0.00019178,2]
[346194875,1734771039697,-415.70121411,0.00019178,2]
[346194877,1734771039707,-500.0,0.00019178,2]
[346194879,1734771039716,-591.81,0.00019178,2]
[346194881,1734771039725,-892.3,0.00019178,2]
[346194883,1734771039734,-500.0,0.00019178,2]
[346194885,1734771039744,-500.0,0.00019178,2]
[346194887,1734771039754,-500.0,0.00019178,2]
[346194889,1734771039763,-500.0,0.00019178,2]
[346194891,1734771039776,-500.0,0.00019178,2]
[346194893,1734771039785,-891.09,0.00019178,2]
[346194895,1734771039794,-500.0,0.00019178,2]
[346194897,1734771039804,-1073.48,0.00019178,2]
[346194899,1734771039813,-794.27,0.00019178,2]
[346194901,1734771039822,-903.17,0.00019178,2]
[346194903,1734771039831,-500.0,0.00019178,2]
[346194905,1734771039840,-500.0,0.00019178,2]
[346194907,1734771039850,-605.77,0.00019178,2]
[346194909,1734771039859,-500.0,0.00019178,2]
[346194911,1734771039868,-2412.16,0.00019178,2]
[346194913,1734771039878,-167.58874608,0.00019178,2]
[346194915,1734771039887,-500.0,0.00019178,2]
[346194917,1734771039896,-500.0,0.00019178,2]
[346194919,1734771039905,-500.0,0.00019178,2]
[346194921,1734771039913,-500.0,0.00019178,2]
[346194923,1734771039923,-500.0,0.00019178,2]
[346194925,1734771039933,-592.9,0.00019178,2]
[346194927,1734771039942,-500.0,0.00019178,2]
[346194929,1734771039951,-500.0,0.00019178,2]
[346194931,1734771039961,-500.0,0.00019178,2]
[346194933,1734771039970,-500.0,0.00019178,2]
[346194935,1734771039982,-500.0,0.00019178,2]
[346194937,1734771039991,-500.0,0.00019178,2]
[346194939,1734771040000,-500.0,0.00019178,2]
[346194941,1734771040009,-2243.37,0.00019178,2]
[346194943,1734771040021,-500.0,0.00019178,2]
[346194945,1734771040030,-500.0,0.00019178,2]
[346194947,1734771040039,-500.0,0.00019178,2]
[346194949,1734771040048,-500.0,0.00019178,2]
[346194952,1734771040058,-500.0,0.00019178,2]
[346194953,1734771040067,-500.0,0.00019178,2]
[346194955,1734771040076,-821.59,0.00019178,2]
[346194957,1734771040085,-500.0,0.00019178,2]
[346194959,1734771040094,-500.0,0.00019178,2]
[346194961,1734771040105,-500.0,0.00019178,2]
[346194963,1734771040114,-500.0,0.00019178,2]
[346194966,1734771040124,-553.69,0.00019178,2]
[346194967,1734771040134,-752.39,0.00019178,2]
[346194969,1734771040143,-500.0,0.00019178,2]
[346194971,1734771040153,-502.59849637,0.00019178,2]
[346194974,1734771040163,-500.0,0.00019178,2]
[346194976,1734771040172,-500.0,0.00019178,2]
[346194977,1734771040182,-812.64,0.00019178,2]
[346194980,1734771040192,-500.0,0.00019178,2]
[346194981,1734771040201,-500.0,0.00019178,2]
[346194983,1734771040210,-500.0,0.00019178,2]
[346194985,1734771040221,-500.0,0.00019178,2]
[346194987,1734771040231,-560.59,0.00019178,2]
[346194990,1734771040240,-500.0,0.00019178,2]
[346194991,1734771040250,-500.0,0.00019178,2]
[346194994,1734771040259,-500.0,0.00019178,2]
[346194996,1734771040271,-500.0,0.00019178,2]
[346194997,1734771040280,-501.44350995,0.00019178,2]
[346194999,1734771040290,-500.0,0.00019178,2]
[346195001,1734771040299,-505.91,0.00019178,2]
[346195003,1734771040308,-500.0,0.00019178,2]
[346195006,1734771040321,-500.0,0.00019178,2]
[346195008,1734771040331,-1739.19,0.00019178,2]
[346195010,1734771040340,-5074.4,0.00019178,2]
[346195012,1734771040350,-363.64,0.00019178,2]
[346195014,1734771040359,-518.41305348,0.00019178,2]
[346195016,1734771040368,-500.0,0.00019178,2]
[346195018,1734771040378,-500.0,0.00019178,2]
[346195020,1734771040387,-835.02,0.00019178,2]
[346195022,1734771040396,-505.82385222,0.00019178,2]
[346195024,1734771040405,-500.0,0.00019178,2]
[346195026,1734771040417,-500.0,0.00019178,2]
[346195028,1734771040426,-781.3,0.00019178,2]
[346195030,1734771040435,-500.0,0.00019178,2]
[346195032,1734771040444,-500.0,0.00019178,2]
[346195033,1734771040455,-1248.52,0.00019178,2]
[346195034,1734771040465,-500.0,0.00019178,2]
[346195036,1734771040474,-500.0,0.00019178,2]
[346195038,1734771040484,-500.0,0.00019178,2]
[346195040,1734771040496,-1300.66,0.00019178,2]
[346195041,1734771040506,-500.0,0.00019178,2]
[346195044,1734771040516,-603.11,0.00019178,2]
[346195045,1734771040525,-500.0,0.00019178,2]
[346195047,1734771040535,-500.0,0.00019178,2]
[346195049,1734771040545,-500.0,0.00019178,2]
[346195051,1734771040554,-500.0,0.00019178,2]
[346195053,1734771040564,-500.96674957,0.00019178,2]
[346195055,1734771040574,-455.46566295,0.00019178,2]
[346195056,1734771040583,-2753.91,0.00019178,2]
[346195057,1734771040592,-502.6707306,0.00019178,2]
[346195058,1734771040601,-500.0,0.00019178,2]
[346195059,1734771040611,-500.0,0.00019178,2]
[346195060,1734771040620,-500.0,0.00019178,2]
[346195061,1734771040629,-1603.3,0.00019178,2]
[346195062,1734771040638,-500.0,0.00019178,2]
[346195063,1734771040648,-936.96,0.00019178,2]
[346195064,1734771040657,-500.0,0.00019178,2]
[346195065,1734771040666,-3352.53,0.00019178,2]
[346195066,1734771040676,-500.0,0.00019178,2]
[346195067,1734771040685,-500.0,0.00019178,2]
[346195068,1734771040695,-500.0,0.00019178,2]
[346195069,1734771040704,-500.0,0.00019178,2]
[346195070,1734771040713,-986.36,0.00019178,2]
[346195071,1734771040722,-179.94486955,0.00019178,2]
[346195085,1734771041075,-320.05513045,0.00019178,2]
[346195086,1734771041084,-500.0,0.00019178,2]
[346195087,1734771041094,-500.0,0.00019178,2]
[346195088,1734771041103,-660.77,0.00019178,2]
[346195089,1734771041113,-500.0,0.00019178,2]
[346195090,1734771041123,-500.0,0.00019178,2]
[346195091,1734771041132,-500.0,0.00019178,2]
[346195092,1734771041143,-500.0,0.00019178,2]
[346195093,1734771041152,-500.0,0.00019178,2]
[346195094,1734771041162,-500.0,0.00019178,2]
[346195095,1734771041172,-500.0,0.00019178,2]
[346195096,1734771041182,-523.36610012,0.00019178,2]
[346195097,1734771041191,-500.0,0.00019178,2]
[346195098,1734771041200,-500.0,0.00019178,2]
[346195099,1734771041210,-500.0,0.00019178,2]
[346195100,1734771041219,-500.0,0.00019178,2]
[346195101,1734771041228,-500.0,0.00019178,2]
[346195102,1734771041238,-500.0,0.00019178,2]
[346195103,1734771041248,-500.0,0.00019178,2]
[346195104,1734771041258,-500.0,0.00019178,2]
[346195105,1734771041268,-500.0,0.00019178,2]
[346195106,1734771041278,-750.24,0.00019178,2]
[346195107,1734771041288,-500.0,0.00019178,2]
[346195108,1734771041298,-500.0,0.00019178,2]
[346195109,1734771041308,-500.0,0.00019178,2]
[346195110,1734771041318,-1325.74,0.00019178,2]
[346195111,1734771041328,-469.97478771,0.00019178,2]
[346195112,1734771041338,-500.0,0.00019178,2]
[346195113,1734771041347,-781.24,0.00019178,2]
[346195114,1734771041356,-500.0,0.00019178,2]
[346195115,1734771041366,-500.0,0.00019178,2]
[346195116,1734771041376,-500.0,0.00019178,2]
[346195117,1734771041386,-500.0,0.00019178,2]
[346195118,1734771041395,-2075.41,0.00019178,2]
[346195119,1734771041404,-500.0,0.00019178,2]
[346195120,1734771041417,-472.47398138,0.00019178,2]
[346195223,1734771045857,-151.0,0.00019177,2]
[346195225,1734771045866,-27.52601862,0.00019178,2]
[346195227,1734771045876,-500.0,0.00019178,2]
[346195229,1734771045886,-500.0,0.00019178,2]
[346195231,1734771045895,-500.0,0.00019178,2]
[346195233,1734771045904,-694.93,0.00019178,2]
[346195235,1734771045914,-500.0,0.00019178,2]
[346195237,1734771045923,-500.0,0.00019178,2]
[346195240,1734771045940,-500.0,0.00019178,2]
[346195242,1734771045955,-500.0,0.00019178,2]
[346195245,1734771045969,-756.94070185,0.00019178,2]
[346195252,1734771387188,220.05569,0.00013973,2]
[346195256,1734771599490,1643.56,0.00025,120]
[346195258,1734771794836,4265.623,0.00017251,2]
[346195261,1734772027335,1014.727,0.00025,120]
[346195341,1734772237942,-6682.31128064,0.00018,7]
[346195345,1734772238108,-260.68871936,0.00018,7]
[346195346,1734772238117,-314.15,0.0001822,2]
[346195347,1734772238127,-500.0,0.00018609,2]
[346195348,1734772238136,-238.6690627,0.00018986,2]
[346195349,1734772238145,-300.0,0.0001908,2]
[346195350,1734772238154,-2138.0,0.00019081,2]
[346195351,1734772238163,-534.0,0.00019081,2]
[346195352,1734772238171,-2362.0,0.00019081,2]
[346195353,1734772238180,-901.04826222,0.0001917,2]
[346195354,1734772238189,-901.04826222,0.0001917,2]
[346195355,1734772238198,-901.04826222,0.0001917,2]
[346195356,1734772238207,-901.04826222,0.0001917,2]
[346195357,1734772238217,-901.04826222,0.0001917,2]
[346195358,1734772238226,-901.04826222,0.0001917,2]
[346195359,1734772238235,-901.04826222,0.0001917,2]
[346195360,1734772238245,-901.04826222,0.0001917,2]
[346195361,1734772238255,-194.81742058,0.0001917,2]
[346197084,1734772571696,209.052905,0.00013973,2]
[346197098,1734773310833,5060.55969051,0.0002,120]
[346197099,1734773312794,22784.77015118,0.00025,120]
[346197100,1734773313024,5251.31531992,0.00025,120]
[346197276,1734773432691,-3207.6195055,0.00018093,2]
[346197277,1734773432701,-301.056,0.0001822,2]
[346197278,1734773432710,-238.6690628,0.00018986,2]
[346197279,1734773432720,-1500.0,0.00019,2]
[346197280,1734773432730,-1500.0,0.00019,2]
[346197281,1734773432741,-1500.0,0.00019,2]
[346197282,1734773432751,-1500.0,0.00019,2]
[346197283,1734773432760,-1500.0,0.00019,2]
[346197284,1734773432769,-1500.0,0.00019,2]
[346197285,1734773432779,-300.0,0.00019026,2]
[346197286,1734773432789,-2138.0,0.00019027,2]
[346197287,1734773432798,-534.0,0.00019027,2]
[346197288,1734773432807,-2362.0,0.00019027,2]
[346197289,1734773432817,-15027.42748658,0.000191,2]
[346197290,1734773432826,-198.50288891,0.00019177,2]
[346197291,1734773432835,-183.59160584,0.00019177,2]
[346197292,1734773432845,-162.68923386,0.00019178,2]
[346197293,1734773432854,-462.31076614,0.00019178,2]
[346197294,1734773432864,-500.0,0.00019178,2]
[346197295,1734773432873,-154.88228422,0.00019178,2]
[346197296,1734773432883,-500.0,0.00019178,2]
[346197297,1734773432892,-500.0,0.00019178,2]
[346197298,1734773432902,-500.0,0.00019178,2]
[346197299,1734773432911,-897.92,0.00019178,2]
[346197300,1734773432920,-500.0,0.00019178,2]
[346197301,1734773432929,-500.0,0.00019178,2]
[346197302,1734773432938,-500.0,0.00019178,2]
[346197303,1734773432948,-379.23030311,0.00019178,2]
[346197304,1734773432957,-500.0,0.00019178,2]
[346197305,1734773432966,-522.38923311,0.00019178,2]
[346197306,1734773432975,-500.0,0.00019178,2]
[346197307,1734773432985,-500.0,0.00019178,2]
[346197308,1734773432994,-500.0,0.00019178,2]
[346197309,1734773433003,-500.0,0.00019178,2]
[346197310,1734773433012,-500.0,0.00019178,2]
[346197311,1734773433022,-513.75410576,0.00019178,2]
[346197312,1734773433032,-500.0,0.00019178,2]
[346197313,1734773433041,-204.76822966,0.00019178,2]
[346197314,1734773433051,-500.0,0.00019178,2]
[346197315,1734773433061,-500.0,0.00019178,2]